bitfinex/quotes_SOLUSD_20220302
["timestamp","ask_amount","ask_price","bid_price","bid_amount"]
[1646192023487,146.6392,102.88,102.77,14.69904003]
[1646192023686,99.3196,102.88,102.77,14.69904003]
[1646192023887,23.7342,102.88,102.77,14.69904003]
[1646192024088,23.7342,102.88,102.79,151.88]
[1646192024287,23.7342,102.88,102.8,12.15]
[1646192025294,44.52202902,102.92,102.8,164.03]
[1646192025492,44.52202902,102.92,102.8,172.25404003]
[1646192025689,44.52202902,102.92,102.8,169.705]
[1646192025897,77.2304,102.93,102.81,151.88]
[1646192026095,77.2304,102.93,102.81,169.00984003]
[1646192026295,77.2304,102.93,102.81,166.4608]
[1646192026496,77.2304,102.93,102.82,12.15]
[1646192026895,46.47805192,102.92,102.82,12.15]
[1646192027496,23.878,102.96,102.82,12.15]
[1646192027696,3.04,102.95,102.82,164.03]
[1646192027898,3.04,102.95,102.86,5.0]
[1646192028100,3.04,102.95,102.88,14.5762]
[1646192028520,60.16808403,102.94,102.88,14.5762]
[1646192028720,60.16808403,102.94,102.88,26.7262]
[1646192028921,3.04,102.95,102.88,26.7262]
[1646192029121,23.878,102.96,102.88,26.7262]
[1646192029720,23.878,102.96,102.88,12.15]
[1646192029926,49.39578468,102.95,102.88,12.15]
[1646192030322,49.39578468,102.95,102.76,150.9695]
[1646192030323,49.39578468,102.95,102.86,12.15]
[1646192030624,0.49949134,102.94,102.86,12.15]
[1646192030820,49.39578468,102.95,102.86,12.15]
[1646192031221,26.918,102.96,102.86,12.15]
[1646192032023,23.878,102.96,102.86,12.15]
[1646192032423,80.53985541,102.96,102.86,12.15]
[1646192033025,80.53985541,102.96,102.86,26.729]
[1646192033525,23.878,102.96,102.86,26.729]
[1646192034828,23.878,102.96,102.86,31.729]
[1646192035030,48.4804,102.99,102.87,2.54904003]
[1646192035229,48.4804,102.99,102.91,14.5704]
[1646192035431,10.0,103.0,102.92,12.15]
[1646192036031,65.1307261,103.0,102.92,12.15]
[1646192036433,65.1307261,103.0,102.93,14.5693]
[1646192036636,65.1307261,103.0,102.93,12.15]
[1646192037533,65.1307261,103.0,102.87,156.88]
[1646192037534,65.1307261,103.0,102.9,26.7229]
[1646192037733,65.1307261,103.0,102.91,12.15]
[1646192039336,65.1307261,103.0,102.91,26.7216]
[1646192039534,66.56114898,103.0,102.91,26.7216]
[1646192039935,65.1307261,103.0,102.91,26.7216]
[1646192040337,66.99605967,103.0,102.91,12.15]
[1646192040535,55.08289538,102.98,102.91,12.15]
[1646192040839,0.42358766,102.97,102.91,12.15]
[1646192041139,59.58541712,102.98,102.91,12.15]
[1646192041337,0.52641621,102.97,102.84,5.0]
[1646192041536,3.07545624,102.97,102.85,14.5799]
[1646192041736,52.22454181,102.96,102.81,5.0]
[1646192041934,0.52641621,102.95,102.82,16.037]
[1646192042135,0.52641621,102.95,102.82,117.237]
[1646192042334,48.17751287,102.96,102.83,151.88]
[1646192042536,48.17751287,102.96,102.87,14.5747]
[1646192042734,48.17751287,102.96,102.88,12.15]
[1646192043137,49.96662816,102.96,102.88,12.15]
[1646192043538,49.96662816,102.96,102.86,12.15]
[1646192043734,49.96662816,102.96,102.82,3.886]
[1646192043935,49.96662816,102.96,102.79,6.43604003]
[1646192043936,115.78141635,102.95,102.79,6.43604003]
[1646192044135,62.79130602,102.94,102.79,6.43604003]
[1646192044335,62.41780796,102.94,102.8,12.15]
[1646192044536,60.75172708,102.94,102.81,3.888]
[1646192044837,3.04,102.95,102.82,12.15]
[1646192045036,24.12930247,102.96,102.82,115.89904003]
[1646192045238,46.9447,102.97,102.83,155.767]
[1646192045435,48.68300648,102.97,102.84,164.03]
[1646192045637,48.68300648,102.97,102.85,3.887]
[1646192045836,54.50419678,102.96,102.86,12.15]
[1646192046040,54.50419678,102.96,102.84,12.15]
[1646192046236,102.79230459,102.95,102.83,12.15]
[1646192046437,57.93357112,102.94,102.84,12.15]
[1646192046638,56.41216657,102.94,102.84,12.15]
[1646192047338,0.3381644,102.93,102.8,48.6088]
[1646192047640,61.16724431,102.94,102.81,12.15]
[1646192047842,61.16724431,102.94,102.81,16.038]
[1646192048037,3.04,102.94,102.81,16.038]
[1646192048239,3.04,102.94,102.81,14.69904003]
[1646192048441,3.04,102.94,102.82,79.2119]
[1646192048640,22.5917,102.97,102.84,60.74]
[1646192048840,22.5917,102.97,102.85,16.037]
[1646192049039,22.5917,102.97,102.86,12.15]
[1646192049841,56.82956252,102.96,102.86,12.15]
[1646192050041,56.82956252,102.96,102.87,14.5738]
[1646192050239,56.82956252,102.96,102.88,12.15]
[1646192051244,56.82956252,102.96,102.88,26.7254]
[1646192051941,22.5917,102.97,102.88,26.7254]
[1646192052543,123.7917,102.97,102.88,26.7254]
[1646192052745,101.2,102.95,102.86,26.7281]
[1646192052943,102.97470256,102.95,102.86,26.7281]
[1646192053143,52.77296366,102.94,102.86,12.15]
[1646192053346,51.30858056,102.94,102.86,12.15]
[1646192054343,152.50858056,102.94,102.86,12.15]
[1646192054544,154.06902735,102.94,102.86,12.15]
[1646192054945,154.06902735,102.94,102.84,12.15]
[1646192056145,102.69756368,102.95,102.84,26.731]
[1646192056545,2.54904003,102.94,102.84,26.731]
[1646192057145,58.12604271,102.91,102.84,26.731]
[1646192057346,102.82031681,102.92,102.84,41.5305]
[1646192058346,101.2,102.93,102.84,41.5305]
[1646192058546,49.55025757,102.92,102.84,41.5305]
[1646192058948,150.75025757,102.92,102.84,41.5305]
[1646192059146,105.9091691,102.95,102.84,41.5305]
[1646192059347,102.8691691,102.95,102.84,41.5305]
[1646192059548,3.04,102.94,102.84,41.5305]
[1646192059946,102.8691691,102.95,102.84,41.5305]
[1646192060146,101.2,102.93,102.84,41.5305]
[1646192060346,103.02252963,102.93,102.84,41.5305]
[1646192060946,46.04456156,102.92,102.84,41.5305]
[1646192061147,148.86436098,102.92,102.84,41.5305]
[1646192061947,3.04,102.94,102.84,41.5305]
[1646192062146,102.99670253,102.93,102.82,26.7338]
[1646192062348,102.99670253,102.93,102.8,12.15]
[1646192062550,0.413465,102.92,102.75,112.9]
[1646192062749,0.413465,102.9,102.75,112.9]
[1646192062951,101.2,102.87,102.76,12.15]
[1646192063848,160.87857481,102.86,102.78,14.5892]
[1646192064151,102.61200904,102.86,102.78,14.5892]
[1646192064547,102.61200904,102.86,102.76,12.15]
[1646192064848,110.56700904,102.86,102.7,299.6]
[1646192065049,103.05214709,102.84,102.7,112.9]
[1646192065249,0.55454571,102.83,102.74,14.5962]
[1646192065452,101.2,102.84,102.74,14.5962]
[1646192065453,102.86140921,102.84,102.74,14.5962]
[1646192065851,22.6723,102.87,102.75,2.30332456]
[1646192066049,22.6723,102.87,102.75,12.15]
[1646192066252,22.6723,102.87,102.78,14.588]
[1646192066752,22.6723,102.87,102.78,26.738]
[1646192068353,101.2,102.86,102.78,26.738]
[1646192068753,22.6723,102.87,102.78,14.588]
[1646192069355,101.2,102.86,102.78,14.588]
[1646192070374,101.2,102.85,102.78,14.588]
[1646192070572,101.2,102.85,102.74,12.15]
[1646192070773,103.74904003,102.85,102.7,112.9]
[1646192071072,0.32164203,102.84,102.71,17.15]
[1646192071273,101.2,102.85,102.74,14.5962]
[1646192071675,46.5184,102.86,102.75,12.15]
[1646192072075,47.73250236,102.86,102.73,48.6505]
[1646192072275,2.54904003,102.85,102.73,60.8005]
[1646192072475,57.25941322,102.85,102.73,60.8005]
[1646192072677,101.2,102.84,102.73,12.15]
[1646192073276,47.71807889,102.86,102.73,12.15]
[1646192073477,46.5184,102.86,102.73,12.15]
[1646192073780,101.2,102.85,102.74,14.5968]
[1646192073978,46.5184,102.86,102.75,12.15]
[1646192074879,147.7184,102.86,102.75,12.15]
[1646192075078,147.7184,102.86,102.78,14.5911]
[1646192075280,46.5184,102.86,102.78,14.5911]
[1646192075681,147.7184,102.86,102.78,14.5911]
[1646192075879,46.5184,102.86,102.78,14.5911]
[1646192076080,46.5184,102.86,102.77,12.15]
[1646192076683,101.2,102.85,102.77,12.15]
[1646192076883,0.38337798,102.84,102.74,12.15]
[1646192077280,0.38337798,102.84,102.71,14.6088]
[1646192077885,0.38337798,102.84,102.72,12.15]
[1646192078088,2.93241801,102.84,102.72,12.15]
[1646192078383,2.93241801,102.84,102.71,5.0]
[1646192078384,0.38337798,102.8,102.71,5.0]
[1646192078582,101.2,102.79,102.69,12.15]
[1646192078784,101.2,102.77,102.66,112.9]
[1646192078983,101.2,102.77,102.67,12.15]
[1646192079387,101.2,102.79,102.67,11.65]
[1646192079585,0.38337798,102.78,102.67,11.65]
[1646192079783,156.70869946,102.79,102.67,11.65]
[1646192079983,0.35106364,102.78,102.67,11.65]
[1646192080183,101.2,102.76,102.67,11.65]
[1646192080483,101.2,102.74,102.64,22.32057762]
[1646192080683,101.2,102.74,102.64,27.32057762]
[1646192080882,101.2,102.74,102.64,22.32057762]
[1646192081083,101.2,102.76,102.64,22.32057762]
[1646192081285,104.24,102.76,102.64,22.32057762]
[1646192081489,166.23027691,102.76,102.64,22.32057762]
[1646192081784,101.2,102.76,102.64,27.32057762]
[1646192081987,101.2,102.76,102.64,22.32057762]
[1646192082185,101.2,102.74,102.64,22.32057762]
[1646192082385,37.8492,102.77,102.64,22.32057762]
[1646192082785,23.2404,102.77,102.64,39.23207097]
[1646192082986,123.6272,102.8,102.64,99.97207097]
[1646192083186,224.8272,102.8,102.64,39.23207097]
[1646192083587,224.8272,102.8,102.64,39.38124534]
[1646192083787,249.1221,102.8,102.64,39.38124534]
[1646192084086,249.1221,102.8,102.66,5.0]
[1646192084287,266.27484003,102.8,102.67,12.15]
[1646192084490,24.5719,102.8,102.67,127.953]
[1646192084689,2.54904003,102.82,102.67,162.9052874]
[1646192084887,82.2444,102.86,102.68,2.54904003]
[1646192085088,78.3524,102.86,102.7,62.6227172]
[1646192085289,72.0631,102.87,102.71,115.56218621]
[1646192085488,72.0631,102.87,102.73,14.592]
[1646192085688,72.0631,102.87,102.74,12.15]
[1646192086089,23.4585,102.87,102.75,5.0]
[1646192086293,23.4585,102.87,102.77,101.2]
[1646192086490,23.5993,102.9,102.78,12.15]
[1646192086890,124.7993,102.9,102.78,14.69904003]
[1646192087093,124.7993,102.9,102.79,2.54904003]
[1646192087294,156.57670619,102.89,102.8,12.15]
[1646192088097,156.57670619,102.89,102.78,12.15]
[1646192088791,156.57670619,102.89,102.78,17.15]
[1646192089191,156.57670619,102.89,102.78,12.15]
[1646192089794,55.37670619,102.89,102.78,26.7395]
[1646192089993,23.5993,102.9,102.78,26.7395]
[1646192090191,23.5993,102.9,102.78,29.28854003]
[1646192090994,101.2,102.89,102.78,29.28854003]
[1646192091194,23.5993,102.9,102.78,29.28854003]
[1646192091594,4.3803207,102.92,102.78,29.28854003]
[1646192091996,104.24,102.92,102.78,36.35262741]
[1646192092198,147.94134386,102.91,102.78,31.35262741]
[1646192092395,147.94134386,102.91,102.79,5.0]
[1646192092599,3.04,102.92,102.82,14.5832]
[1646192092796,145.8272,102.93,102.82,14.5832]
[1646192092997,247.0272,102.93,102.82,14.5832]
[1646192093297,247.0272,102.93,102.82,29.28224003]
[1646192093298,145.8272,102.93,102.82,29.28224003]
[1646192093898,247.0272,102.93,102.82,29.28224003]
[1646192094196,247.0272,102.93,102.82,31.60105745]
[1646192094197,145.8272,102.93,102.82,31.60105745]
[1646192094999,302.55939773,102.93,102.82,31.60105745]
[1646192095200,247.0272,102.93,102.82,34.28224003]
[1646192095400,247.0272,102.93,102.82,31.7332]
[1646192095599,247.0272,102.93,102.82,26.7332]
[1646192096200,101.2,102.91,102.82,26.7332]
[1646192096400,151.13654932,102.92,102.82,26.7332]
[1646192096801,151.13654932,102.92,102.82,12.15]
[1646192097003,101.2,102.9,102.74,14.2305]
[1646192097201,0.6618641,102.87,102.74,26.3805]
[1646192097403,101.2,102.86,102.74,26.3805]
[1646192097700,0.6618641,102.85,102.74,26.3805]
[1646192097900,99.3618641,102.86,102.74,26.3805]
[1646192098302,99.3618641,102.87,102.74,26.3805]
[1646192098904,99.3618641,102.85,102.74,26.3805]
[1646192099105,23.898,102.88,102.75,14.5936]
[1646192099305,23.898,102.88,102.76,12.15]
[1646192099909,23.898,102.88,102.78,5.0]
[1646192100106,151.87464389,102.87,102.78,5.0]
[1646192100308,23.898,102.88,102.77,12.15]
[1646192101108,23.898,102.88,102.79,14.5859]
[1646192101311,23.898,102.88,102.79,20.4949]
[1646192101707,23.898,102.88,102.79,32.6449]
[1646192102513,3.04,102.91,102.8,0.48152117]
[1646192102810,55.84500453,102.92,102.82,14.5833]
[1646192103010,55.84500453,102.92,102.82,26.7333]
[1646192103410,101.2,102.91,102.82,26.7333]
[1646192103609,55.84500453,102.92,102.82,26.7333]
[1646192104012,77.86044003,102.93,102.82,26.7333]
[1646192104410,75.3114,102.93,102.82,26.7333]
[1646192105213,118.28162449,102.93,102.82,26.7333]
[1646192105412,170.9573,102.94,102.82,26.7333]
[1646192105611,23.6595,102.94,102.83,0.67860142]
[1646192105813,23.6595,102.94,102.86,14.5759]
[1646192106013,23.6595,102.94,102.87,12.15]
[1646192106410,101.2,102.95,102.87,12.15]
[1646192106612,60.20055711,102.94,102.87,12.15]
[1646192106810,101.2,102.94,102.84,14.5806]
[1646192107013,101.2,102.94,102.85,12.15]
[1646192107215,140.90271592,102.94,102.83,12.15]
[1646192107616,139.87271592,102.94,102.83,12.15]
[1646192107815,139.87271592,102.94,102.82,5.0]
[1646192107816,100.17,102.92,102.82,5.0]
[1646192108015,100.17,102.9,102.82,5.0]
[1646192108212,100.17,102.88,102.82,5.0]
[1646192108420,101.2,102.91,102.81,12.15]
[1646192109411,101.2,102.89,102.81,12.15]
[1646192109814,101.2,102.87,102.81,12.15]
[1646192110015,101.2,102.87,102.79,5.0]
[1646192110214,100.7,102.87,102.78,12.15]
[1646192110615,100.7,102.85,102.78,12.15]
[1646192111117,0.81581203,103.02,102.95,2.54904003]
[1646192111314,2.67286854,103.06,103.01,63.04512536]
[1646192111515,2.67286854,103.09,103.02,164.03]
[1646192111716,24.71342509,103.17,103.03,151.88]
[1646192111916,3.04,103.05,103.0,20.0]
[1646192112126,40.0,103.04,102.98,10.31476152]
[1646192112314,78.50535501,103.1,102.98,10.31476152]
[1646192112515,114.36644211,103.11,102.98,10.31476152]
[1646192112716,1.58833686,103.14,103.05,151.88]
[1646192112918,1.58833686,103.14,103.06,12.15]
[1646192113115,57.40030109,103.13,103.06,12.15]
[1646192113318,47.46580289,103.11,103.06,12.15]
[1646192113515,48.88092158,103.09,103.06,12.15]
[1646192113715,3.04,103.12,103.06,12.15]
[1646192113918,3.04,103.12,103.07,14.5506]
[1646192114117,3.04,103.12,103.07,41.7589886]
[1646192114317,0.0001,103.12,103.08,12.15]
[1646192114517,0.0001,103.12,103.08,190.99629883]
[1646192114717,0.0001,103.12,103.09,27.06797221]
[1646192114919,56.28197384,103.13,103.08,151.88]
[1646192115119,56.28197384,103.13,103.09,12.15]
[1646192115317,1.58833686,103.14,103.09,12.15]
[1646192115520,1.58833686,103.14,103.09,27.8086263]
[1646192115716,1.58833686,103.14,103.09,29.83566896]
[1646192115924,5.0,103.12,103.09,12.15]
[1646192116926,1.48211059,103.12,103.09,12.15]
[1646192117124,1.48211059,103.12,103.04,12.15]
[1646192117526,1.48211059,103.12,103.05,3.88]
[1646192117725,54.70231145,103.14,103.06,12.15]
[1646192117924,1.58833686,103.14,103.06,12.15]
[1646192118128,1.48,103.11,103.06,12.15]
[1646192118347,1.48,103.11,103.06,13.59208564]
[1646192118547,1.48,103.11,103.03,153.82240749]
[1646192118746,1.48,103.11,103.04,12.15]
[1646192119546,0.2925,103.11,103.05,6.42904003]
[1646192119746,0.2925,103.11,103.06,12.15]
[1646192119947,0.0025,103.11,103.06,12.15]
[1646192120146,0.0025,103.11,103.06,166.52532265]
[1646192120348,3.686e-05,103.14,103.09,0.98]
[1646192120655,1.5888323,103.2,103.1,180.91638705]
[1646192120849,3.23e-05,103.2,103.1,29.03638705]
[1646192121048,26.20554236,103.29,103.12,154.34971649]
[1646192121247,52.89063269,103.28,103.13,166.447582]
[1646192121446,49.01563269,103.28,103.13,2.417582]
[1646192121649,0.18494017,103.27,103.14,12.15]
[1646192121846,49.01563269,103.28,103.15,12.15]
[1646192122048,0.28482223,103.27,103.16,167.405]
[1646192122247,0.81702509,103.26,103.17,154.10367788]
[1646192122446,58.62386031,103.26,103.18,16.025]
[1646192123049,58.62386031,103.26,103.18,12.15]
[1646192123446,0.81702509,103.26,103.18,164.03]
[1646192123647,0.81702509,103.26,103.18,18.13]
[1646192123847,1.4644181,103.3,103.23,154.2896798]
[1646192124047,1.81e-05,103.3,103.26,151.88]
[1646192124252,1.81e-05,103.3,103.27,12.15]
[1646192124447,0.93798916,103.36,103.28,0.02693331]
[1646192124649,3.871,103.45,103.29,3.871]
[1646192124848,0.19439032,103.41,103.32,0.98]
[1646192125053,798.68439032,103.42,103.35,0.98]
[1646192125249,793.94809032,103.42,103.36,151.88]
[1646192125449,780.66669032,103.42,103.37,12.15]
[1646192125648,740.59059032,103.42,103.37,12.15]
[1646192125851,569.12969032,103.42,103.37,12.15]
[1646192126252,569.12969032,103.42,103.31,0.98]
[1646192126452,47.24795803,103.41,103.36,151.88]
[1646192126750,25.76675803,103.41,103.36,153.89343606]
[1646192126952,551.54349032,103.42,103.37,12.15]
[1646192127152,322.44523619,103.42,103.37,166.48490522]
[1646192127351,322.44523619,103.42,103.38,151.88]
[1646192127550,177.24730653,103.42,103.39,12.15]
[1646192127750,177.24730653,103.42,103.4,0.02690206]
[1646192127952,54.18785738,103.41,103.4,0.02690206]
[1646192128356,54.18785738,103.41,103.35,151.88]
[1646192128550,54.18785738,103.41,103.35,154.1751087]
[1646192128751,54.18785738,103.41,103.35,151.88]
[1646192128951,54.18785738,103.41,103.36,12.15]
[1646192129152,0.12272501,103.4,103.36,12.15]
[1646192129352,177.24730653,103.42,103.36,12.15]
[1646192129752,191.80030653,103.42,103.36,12.15]
[1646192129952,191.80030653,103.42,103.34,12.15]
[1646192130155,5.16220716,103.4,103.33,12.15]
[1646192130354,5.16220716,103.4,103.3,5.0]
[1646192130654,0.36061896,103.38,103.2,34.37133056]
[1646192130858,43.4882383,103.36,103.21,42.55]
[1646192131053,43.4882383,103.36,103.21,12.15]
[1646192131654,43.12761934,103.36,103.22,154.06194526]
[1646192131853,57.38691934,103.36,103.23,12.15]
[1646192132253,0.28167782,103.35,103.23,12.15]
[1646192132454,5.0,103.35,103.23,12.15]
[1646192132654,44.99574014,103.34,103.23,12.15]
[1646192132854,44.99574014,103.34,103.12,2.43878525]
[1646192132855,57.81271466,103.32,103.12,2.43878525]
[1646192133053,57.81271466,103.32,103.11,151.88]
[1646192133054,217.3099677,103.32,103.11,153.97254178]
[1646192133254,217.3099677,103.32,103.12,0.98]
[1646192133558,117.99943905,103.32,103.14,168.98361574]
[1646192133756,103.97033416,103.32,103.16,163.8745501]
[1646192134054,103.97033416,103.32,103.18,103.32926325]
[1646192134055,5.0,103.31,103.18,103.32926325]
[1646192134257,5.0,103.31,103.19,120.59381202]
[1646192134456,5.0,103.31,103.19,328.21381202]
[1646192134656,5.0,103.31,103.19,176.33381202]
[1646192134954,5.0,103.31,103.21,103.21024049]
[1646192135156,5.0,103.31,103.22,12.15]
[1646192135554,3.873,103.37,103.22,12.15]
[1646192135755,5.0,103.35,103.22,167.49789812]
[1646192135954,5.0,103.35,103.23,0.98]
[1646192136156,5.0,103.35,103.25,101.2]
[1646192136356,5.0,103.35,103.27,101.2]
[1646192136555,39.0138,103.38,103.28,115.5415525]
[1646192136755,39.0138,103.38,103.29,117.221]
[1646192136756,14.4423,103.38,103.29,117.221]
[1646192137155,177.24730653,103.42,103.38,8.47844481]
[1646192137559,55.62537304,103.41,103.38,8.47844481]
[1646192137761,55.62537304,103.41,103.34,12.15]
[1646192137961,55.62537304,103.41,103.33,12.15]
[1646192138958,55.62537304,103.41,103.33,113.35]
[1646192139159,55.62537304,103.41,103.33,115.5728369]
[1646192139363,55.62537304,103.41,103.33,18.2418369]
[1646192139562,45.62537304,103.41,103.33,18.2418369]
[1646192139760,45.62537304,103.41,103.33,12.15]
[1646192140764,45.62537304,103.41,103.33,16.019]
[1646192140963,45.62537304,103.41,103.33,12.15]
[1646192141670,0.32729328,103.39,103.3,12.15]
[1646192141863,0.32729328,103.39,103.21,48.3869]
[1646192141864,0.32729328,103.39,103.29,12.15]
[1646192142062,57.0815682,103.39,103.27,12.15]
[1646192142767,57.0815682,103.39,103.28,3.871]
[1646192143065,57.0815682,103.39,103.29,12.15]
[1646192143466,57.0815682,103.39,103.26,12.15]
[1646192143467,58.23843448,103.39,103.26,12.15]
[1646192143870,101.2,103.38,103.26,12.15]
[1646192144071,101.2,103.36,103.24,12.15]
[1646192144269,101.2,103.34,103.22,5.0]
[1646192144467,52.09084808,103.33,103.22,5.0]
[1646192144766,58.28884808,103.33,103.22,5.0]
[1646192144968,102.62413141,103.32,103.22,0.0001]
[1646192145169,12.15,103.32,103.17,112.9]
[1646192145376,16.14322016,103.32,103.16,12.15]
[1646192145572,16.14322016,103.32,103.16,76.764]
[1646192145769,1.44418013,103.32,103.16,16.024]
[1646192145968,14.69904003,103.34,103.16,18.38798945]
[1646192146168,48.73276684,103.34,103.18,0.38477327]
[1646192146370,48.73276684,103.34,103.19,16.023]
[1646192146572,12.15,103.33,103.16,112.9]
[1646192146869,101.31234026,103.31,103.06,5.0]
[1646192147167,5.0,103.23,103.04,111.3099637]
[1646192147369,59.94692584,103.22,103.05,3.878]
[1646192147568,59.94692584,103.22,103.05,117.228]
[1646192147974,41.73931099,103.27,103.1,0.60670808]
[1646192148168,48.51691912,103.28,103.12,0.60670808]
[1646192148374,52.1785,103.28,103.14,0.60670808]
[1646192148570,52.1785,103.28,103.15,12.15]
[1646192148769,51.50384195,103.28,103.16,4.48170808]
[1646192149075,46.50384195,103.28,103.17,12.15]
[1646192149276,93.83425768,103.28,103.18,3.875]
[1646192149471,93.83425768,103.28,103.16,12.15]
[1646192149869,46.50384195,103.28,103.16,12.15]
[1646192150270,46.50384195,103.28,103.16,113.35]
[1646192150472,23.3043,103.28,103.17,15.22046979]
[1646192150670,23.3043,103.28,103.18,12.15]
[1646192150871,23.3043,103.28,103.19,3.874]
[1646192151071,23.3043,103.28,103.19,16.024]
[1646192151271,23.3043,103.28,103.19,12.15]
[1646192151571,82.9447,103.35,103.19,200.3165]
[1646192151774,5.0,103.32,103.2,67.97266593]
[1646192151971,5.0,103.32,103.21,12.15]
[1646192152173,23.6366,103.36,103.22,4.6836259]
[1646192152371,23.6366,103.36,103.23,113.35]
[1646192152571,23.6366,103.36,103.24,0.8106259]
[1646192152774,51.39755017,103.35,103.25,12.15]
[1646192153172,23.6366,103.36,103.25,12.15]
[1646192153372,23.6366,103.36,103.26,3.872]
[1646192153572,23.6366,103.36,103.27,12.15]
[1646192153772,53.87556266,103.38,103.28,0.47094773]
[1646192153971,53.87556266,103.38,103.27,12.15]
[1646192154171,57.83578444,103.37,103.27,12.15]
[1646192154376,52.4954,103.38,103.27,12.15]
[1646192154574,52.4954,103.38,103.27,26.666]
[1646192154771,47.4954,103.38,103.27,26.666]
[1646192154972,52.4954,103.38,103.28,0.44831669]
[1646192155173,47.4954,103.38,103.28,113.35]
[1646192155377,42.87612888,103.37,103.28,113.35]
[1646192155575,42.87612888,103.37,103.28,12.15]
[1646192155975,44.20830988,103.37,103.24,14.5198]
[1646192156178,44.20830988,103.37,103.24,26.6698]
[1646192156378,5.0,103.36,103.24,26.6698]
[1646192156576,53.59842787,103.35,103.24,26.6698]
[1646192156979,53.59842787,103.35,103.25,101.2]
[1646192157183,53.59842787,103.35,103.26,0.44634757]
[1646192157380,53.59842787,103.35,103.25,16.022]
[1646192157577,52.4954,103.38,103.25,12.15]
[1646192157777,53.8882033,103.38,103.26,14.5212]
[1646192157977,53.8882033,103.38,103.27,113.35]
[1646192158279,47.4954,103.38,103.28,0.42648093]
[1646192158879,47.4954,103.38,103.28,87.4084]
[1646192159078,47.4954,103.38,103.28,188.6084]
[1646192159278,47.4954,103.38,103.28,127.8684]
[1646192159683,47.4954,103.38,103.28,188.6084]
[1646192159879,24.4072,103.38,103.28,131.7394]
[1646192160379,24.4072,103.38,103.28,127.8684]
[1646192160579,24.4072,103.38,103.31,14.5131]
[1646192160779,24.4072,103.38,103.31,26.6631]
[1646192160981,24.4072,103.38,103.31,132.8631]
[1646192161179,75.38171682,103.38,103.31,26.6631]
[1646192161580,24.4072,103.38,103.31,26.6631]
[1646192161779,24.4072,103.38,103.31,14.5131]
[1646192161983,24.4072,103.38,103.29,12.15]
[1646192162581,44.71350128,103.37,103.29,12.15]
[1646192163081,44.71350128,103.37,103.28,14.5178]
[1646192163282,46.04857423,103.37,103.28,14.5178]
[1646192163482,147.24857423,103.37,103.28,14.5178]
[1646192163682,147.24857423,103.37,103.25,14.5223]
[1646192164884,147.24857423,103.37,103.25,115.7223]
[1646192165087,147.24857423,103.37,103.25,14.5223]
[1646192165287,147.24857423,103.37,103.25,115.7223]
[1646192165486,147.24857423,103.37,103.26,3.871]
[1646192165687,147.24857423,103.37,103.25,115.7223]
[1646192165886,147.24857423,103.37,103.25,14.5223]
[1646192166386,147.24857423,103.37,103.25,115.7223]
[1646192166587,147.24857423,103.37,103.26,0.45757394]
[1646192166888,147.24857423,103.37,103.25,14.5223]
[1646192167711,147.24857423,103.37,103.26,0.59417661]
[1646192167912,147.24857423,103.37,103.25,14.5223]
[1646192168306,46.04857423,103.37,103.25,14.5223]
[1646192168505,44.71350128,103.37,103.26,101.58080981]
[1646192168804,44.71350128,103.37,103.29,0.56833689]
[1646192168805,46.41844814,103.37,103.29,0.56833689]
[1646192169005,46.41844814,103.37,103.28,19.5196]
[1646192169205,46.41844814,103.37,103.28,5.0]
[1646192169406,101.2,103.36,103.28,5.0]
[1646192169608,146.08884533,103.35,103.28,5.0]